[Event "Hungarian Super League 2024-25"]
[Site "Hungary"]
[Date "2024.11.02"]
[Round "1.39"]
[White "Palczert, Matyas"]
[Black "Radnai, Adam"]
[Result "1-0"]
[ECO "B06"]
[WhiteElo "2359"]
[BlackElo "2252"]
[Annotator "RC"]
[PlyCount "49"]
[EventDate "2024.10.30"]
[EventType "team-tourn"]
[EventCountry "HUN"]
[SourceTitle "playchess.com"]
[Source "ChessBase"]
[SourceQuality "1"]
[TimeControl "40/5400+30:1800+30"]

1. e4 {[%emt 0:00:51]} g6 {[%emt 0:00:40]} 2. d4 {[%emt 0:00:07]} Bg7 {[%emt 0:00:07]} 3. Nf3 {[%emt 0:00:13]} c6 {[%emt 0:00:32]} 4. Nc3 {[%emt 0:00:52]} d5 {[%emt 0:00:06]} 5. h3 {[%emt 0:01:32]} Nh6 {[%emt 0:00:05]} 6. Bd3 {[%emt 0:04:17]} O-O {[%emt 0:02:10]} 7. O-O {[%emt 0:04:05]} f6 {[%emt 0:03:46]} 8. Ne2 {[%emt 0:09:59]} Na6 {[%emt 0:16:43]} 9. c4 {[%emt 0:07:43]} dxe4 {[%emt 0:18:05]} 10. Bxe4 {[%emt 0:00:15]} Nf7 {[%emt 0:00:49]} 11. Nc3 {[%emt 0:06:54]} f5 {[%emt 0:11:52]} 12. Bc2 {[%emt 0:01:46]} c5 {[%emt 0:05:01]} 13. dxc5 {[%emt 0:09:33]} Nxc5 {[%emt 0:12:08]} 14. Qe2 {[%emt 0:02:36]} e5 {[%emt 0:07:13]} 15. Rd1 {[%emt 0:01:18]} Qc7 {[%emt 0:00:20]} 16. Nd5 {[%emt 0:03:05]} Qb8 {[%emt 0:00:46]} 17. Be3 {[%emt 0:07:58]} b6 {[%emt 0:02:51]} 18. b4 {[%emt 0:05:20]} Ne6 {[%emt 0:01:26]} 19. Rac1 {[%emt 0:02:17]} Bb7 {[%emt 0:01:14]} 20. Ne7+ {[%emt 0:07:33]} Kh8 {[%emt 0:00:05]} 21. Nh4 {[%emt 0:02:18]} e4 {[%emt 0:04:19]} 22. Nhxg6+ {[%emt 0:02:47]} hxg6 {[%emt 0:00:01]} 23. Nxg6+ {[%emt 0:00:14]} Kg8 {[%emt 0:00:13]} 24. Ne7+ {[%emt 0:00:53]} Kh7 {[%emt 0:01:36]} 25. Qh5+ {[%emt 0:00:24]} 1-0

[Event "Hungarian Super League 2024-25"]
[Site "Hungary"]
[Date "2024.11.02"]
[Round "1.40"]
[White "Onodi, Miklos"]
[Black "Gara, Anita"]
[Result "0-1"]
[ECO "D02"]
[WhiteElo "2080"]
[BlackElo "2343"]
[Annotator "RC"]
[PlyCount "76"]
[EventDate "2024.10.30"]
[EventType "team-tourn"]
[EventCountry "HUN"]
[SourceTitle "playchess.com"]
[Source "ChessBase"]
[SourceQuality "1"]
[TimeControl "40/5400+30:1800+30"]

1. d4 {[%emt 0:00:37]} d5 {[%emt 0:01:28]} 2. Nf3 {[%emt 0:00:08]} c5 {[%emt 0:01:03]} 3. c4 {[%emt 0:00:15]} e6 {[%emt 0:00:54]} 4. cxd5 {[%emt 0:00:16]} exd5 {[%emt 0:00:20]} 5. g3 {[%emt 0:00:25]} Nf6 {[%emt 0:02:24]} 6. Bg2 {[%emt 0:00:23]} Nc6 {[%emt 0:02:10]} 7. O-O {[%emt 0:01:52]} Be7 {[%emt 0:00:05]} 8. dxc5 {[%emt 0:00:21]} Bxc5 {[%emt 0:00:28]} 9. a3 {[%emt 0:00:25]} Ne4 {[%emt 0:13:54]} 10. Nfd2 {[%emt 0:02:39]} f5 {[%emt 0:00:30]} 11. b4 {[%emt 0:18:24]} Bd4 {[%emt 0:05:31]} 12. Ra2 {[%emt 0:00:17]} Qb6 {[%emt 0:21:01]} 13. e3 {[%emt 0:13:05]} Bf6 {[%emt 0:00:37]} 14. Qb3 {[%emt 0:20:52]} Ne7 {[%emt 0:07:39]} 15. Nxe4 {[%emt 0:25:06]} dxe4 {[%emt 0:04:29]} 16. Rd2 {[%emt 0:06:43]} Be6 {[%emt 0:04:07]} 17. Qa4+ {[%emt 0:00:56]} Kf7 {[%emt 0:00:09]} 18. Bb2 {[%emt 0:01:23]} Bxb2 {[%emt 0:03:42]} 19. Rxb2 {[%emt 0:00:09]} Rhd8 {[%emt 0:02:30]} 20. Rc1 {[%emt 0:05:29]} Rac8 {[%emt 0:05:59]} 21. Nc3 {[%emt 0:00:20]} Nc6 {[%emt 0:11:23]} 22. Rbc2 {[%emt 0:00:52]} Ne5 {[%emt 0:01:26]} 23. Nb5 {[%emt 0:00:20]} Rxc2 {[%emt 0:01:12]} 24. Rxc2 {[%emt 0:00:35]} Rd1+ {[%emt 0:00:33]} 25. Bf1 {[%emt 0:00:00]} Nf3+ {[%emt 0:00:36]} 26. Kg2 {[%emt 0:00:00]} Ne1+ {[%emt 0:00:29]} 27. Kg1 {[%emt 0:00:00]} Nxc2 {[%emt 0:00:17]} 28. Qxc2 {[%emt 0:00:00]} Rxf1+ {[%emt 0:00:20]} 29. Kxf1 {[%emt 0:00:00]} Qxb5+ {[%emt 0:00:03]} 30. Kg2 {[%emt 0:00:12]} Qc4 {[%emt 0:02:14]} 31. Qb2 {[%emt 0:00:32]} Qd5 {[%emt 0:02:13]} 32. Qc3 {[%emt 0:00:32]} a6 {[%emt 0:00:46]} 33. h3 {[%emt 0:00:40]} Bd7 {[%emt 0:00:56]} 34. Qc2 {[%emt 0:00:23]} Bc6 {[%emt 0:00:50]} 35. Qb2 {[%emt 0:00:43]} h6 {[%emt 0:00:05]} 36. Qc2 {[%emt 0:00:24]} Kg6 {[%emt 0:00:25]} 37. Qb2 {[%emt 0:00:35]} Bb5 {[%emt 0:00:39]} 38. Qc1 {[%emt 0:00:09]} Be2 {[%emt 0:01:04]} 0-1

[Event "Hungarian Super League 2024-25"]
[Site "Hungary"]
[Date "2024.11.02"]
[Round "1.41"]
[White "Mazur, Stefan"]
[Black "Indjic, Aleksandar"]
[Result "1/2-1/2"]
[ECO "B42"]
[WhiteElo "2412"]
[BlackElo "2623"]
[Annotator "RC"]
[PlyCount "145"]
[EventDate "2024.10.30"]
[EventType "team-tourn"]
[EventCountry "HUN"]
[SourceTitle "playchess.com"]
[Source "ChessBase"]
[SourceQuality "1"]
[TimeControl "40/5400+30:1800+30"]

1. e4 {[%emt 0:00:55]} c5 {[%emt 0:00:57]} 2. Nf3 {[%emt 0:00:15]} e6 {[%emt 0:00:16]} 3. d4 {[%emt 0:00:44]} cxd4 {[%emt 0:00:08]} 4. Nxd4 {[%emt 0:00:06]} a6 {[%emt 0:00:06]} 5. Bd3 {[%emt 0:00:13]} Bc5 {[%emt 0:00:43]} 6. Nb3 {[%emt 0:00:12]} Be7 {[%emt 0:01:42]} 7. Qg4 {[%emt 0:00:48]} g6 {[%emt 0:00:06]} 8. Qd1 {[%emt 0:00:51]} d6 {[%emt 0:00:12]} 9. a4 {[%emt 0:04:35]} b6 {[%emt 0:01:20]} 10. O-O {[%emt 0:01:52]} Bb7 {[%emt 0:00:08]} 11. Na3 {[%emt 0:00:35]} Nf6 {[%emt 0:02:13]} 12. Bh6 {[%emt 0:03:16]} Bxe4 {[%emt 0:09:38]} 13. Bxe4 {[%emt 0:03:30]} Nxe4 {[%emt 0:00:16]} 14. Qd4 {[%emt 0:00:22]} Nf6 {[%emt 0:00:06]} 15. Nc4 {[%emt 0:02:29]} Nc6 {[%emt 0:00:20]} 16. Qxb6 {[%emt 0:04:06]} Qxb6 {[%emt 0:01:13]} 17. Nxb6 {[%emt 0:00:04]} Rb8 {[%emt 0:00:08]} 18. a5 {[%emt 0:03:12]} Nxa5 {[%emt 0:06:55]} 19. Rxa5 {[%emt 0:13:17]} Rxb6 {[%emt 0:00:22]} 20. Rfa1 {[%emt 0:02:45]} Kd7 {[%emt 0:00:09]} 21. Rxa6 {[%emt 0:01:28]} Rxa6 {[%emt 0:00:06]} 22. Rxa6 {[%emt 0:00:07]} Rc8 {[%emt 0:00:04]} 23. Na1 {[%emt 0:03:20]} Nd5 {[%emt 0:01:48]} 24. Bd2 {[%emt 0:11:59]} Bf6 {[%emt 0:03:29]} 25. Ra2 {[%emt 0:04:36]} Rb8 {[%emt 0:04:12]} 26. Nb3 {[%emt 0:05:52]} Nb4 {[%emt 0:01:25]} 27. Bxb4 {[%emt 0:00:26]} Rxb4 {[%emt 0:00:02]} 28. Kf1 {[%emt 0:00:12]} h5 {[%emt 0:00:09]} 29. Ke2 {[%emt 0:00:29]} g5 {[%emt 0:00:17]} 30. h3 {[%emt 0:01:47]} Ke7 {[%emt 0:00:29]} 31. Kd2 {[%emt 0:04:12]} Be5 {[%emt 0:03:02]} 32. Ra7+ {[%emt 0:07:00]} Kf6 {[%emt 0:02:08]} 33. Na5 {[%emt 0:00:29]} Bxb2 {[%emt 0:16:21]} 34. c3 {[%emt 0:05:16]} Rf4 {[%emt 0:00:15]} 35. f3 {[%emt 0:00:31]} Ba3 {[%emt 0:12:40]} 36. Nb7 {[%emt 0:03:30]} Bc5 {[%emt 0:00:28]} 37. Nxc5 {[%emt 0:00:09]} dxc5 {[%emt 0:00:03]} 38. Rc7 {[%emt 0:00:21]} Ra4 {[%emt 0:00:47]} 39. Rxc5 {[%emt 0:13:26]} Ra2+ {[%emt 0:00:17]} 40. Ke3 {[%emt 0:00:00]} h4 {[%emt 0:00:00]} 41. c4 {[%emt 0:12:20]} Rxg2 {[%emt 0:04:43]} 42. Ra5 {[%emt 0:00:14]} Rg3 {[%emt 0:05:34]} 43. c5 {[%emt 0:00:52]} Ke5 {[%emt 0:04:00]} 44. Ra7 {[%emt 0:02:14]} Kd5 {[%emt 0:03:41]} 45. Rxf7 {[%emt 0:00:19]} Rxh3 {[%emt 0:00:07]} 46. Rg7 {[%emt 0:06:33]} Rg3 {[%emt 0:00:24]} 47. Rg6 {[%emt 0:00:03]} h3 {[%emt 0:17:49]} 48. c6 {[%emt 0:03:36]} Kd6 {[%emt 0:00:19]} 49. Rh6 {[%emt 0:02:34]} g4 {[%emt 0:02:01]} 50. Kf4 {[%emt 0:00:20]} Rxf3+ {[%emt 0:00:28]} 51. Kxg4 {[%emt 0:00:07]} Rc3 {[%emt 0:01:13]} 52. c7 {[%emt 0:01:04]} Kd5 {[%emt 0:00:29]} 53. Rxh3 {[%emt 0:01:09]} Rxc7 {[%emt 0:00:06]} 54. Rh1 {[%emt 0:00:22]} Rc3 {[%emt 0:00:06]} 55. Rd1+ {[%emt 0:01:19]} Ke4 {[%emt 0:00:44]} 56. Re1+ {[%emt 0:00:06]} Re3 {[%emt 0:01:32]} 57. Ra1 {[%emt 0:00:07]} Rd3 {[%emt 0:00:32]} 58. Re1+ {[%emt 0:00:12]} Re3 {[%emt 0:00:27]} 59. Ra1 {[%emt 0:00:15]} Re2 {[%emt 0:00:05]} 60. Ra4+ {[%emt 0:01:13]} Ke3 {[%emt 0:00:06]} 61. Ra3+ {[%emt 0:01:12]} Kf2 {[%emt 0:00:07]} 62. Rf3+ {[%emt 0:00:20]} Ke1 {[%emt 0:00:08]} 63. Ra3 {[%emt 0:00:18]} e5 {[%emt 0:00:07]} 64. Kg3 {[%emt 0:03:59]} e4 {[%emt 0:00:45]} 65. Ra1+ {[%emt 0:00:34]} Kd2 {[%emt 0:00:07]} 66. Ra2+ {[%emt 0:00:05]} Ke3 {[%emt 0:00:08]} 67. Ra3+ {[%emt 0:00:05]} Kd4 {[%emt 0:00:07]} 68. Ra4+ {[%emt 0:00:12]} Kd5 {[%emt 0:00:06]} 69. Ra5+ {[%emt 0:01:33]} Kc4 {[%emt 0:00:17]} 70. Kf4 {[%emt 0:00:18]} Re1 {[%emt 0:00:13]} 71. Ra4+ {[%emt 0:00:14]} Kd3 {[%emt 0:00:06]} 72. Ra3+ {[%emt 0:00:17]} Kd4 {[%emt 0:00:30]} 73. Ra4+ {[%emt 0:00:07]} 1/2-1/2

[Event "Hungarian Super League 2024-25"]
[Site "Hungary"]
[Date "2024.11.02"]
[Round "1.42"]
[White "Nagy, Gabor"]
[Black "Sipos, Istvan"]
[Result "1/2-1/2"]
[ECO "E62"]
[WhiteElo "2458"]
[BlackElo "2454"]
[Annotator "TA"]
[PlyCount "61"]
[EventDate "2024.10.30"]
[EventType "team-tourn"]
[EventCountry "HUN"]
[SourceTitle "playchess.com"]
[Source "ChessBase"]
[SourceQuality "1"]
[TimeControl "40/5400+30:1800+30"]

{[%evp 9,61,27,31,0,39,30,34,23,38,29,54,65,49,39,55,47,41,34,41,26,21,16,18,22,19,16,16,0,0,0,0,0,-7,-10,0,0,0,0,0,0,0,0,0,0,0,0,0,0,-2,-5,0,0,0,0]} 1. c4 {[%emt 0:00:53]} Nf6 {[%emt 0:00:45]} 2. Nc3 {[%emt 0:00:22]} d6 {[%emt 0:00:12]} 3. Nf3 {[%emt 0:00:57]} g6 {[%emt 0:00:18]} 4. d4 {[%emt 0:00:47]} Bg7 {[%emt 0:00:26]} 5. g3 {[%emt 0:00:40]} Bf5 {[%emt 0:05:13]} 6. Qb3 {[%emt 0:01:44]} Qc8 {[%emt 0:00:37]} 7. Bg2 {[%emt 0:00:17]} c6 {[%emt 0:03:59]} 8. O-O {[%emt 0:05:37] White is slightly better.} Ne4 {[%emt 0:04:15]} 9. Nd1 {[%emt 0:08:12]} a5 {[%emt 0:06:34][%cal Ba7a5,Ba5a4][%mdl 32]} 10. Nh4 {[%emt 0:04:07]} a4 {[%emt 0:09:11]} 11. Qe3 {[%emt 0:01:40]} d5 {[%emt 0:00:55]} 12. Nxf5 {[%emt 0:03:31]} Qxf5 {[%emt 0:01:08]} 13. cxd5 {[%emt 0:08:28]} cxd5 {[%emt 0:00:05]} 14. Qd3 {[%emt 0:00:14]} Nc6 {[%emt 0:19:17]} 15. Ne3 {[%emt 0:02:20] The position is equal.} Qd7 {[%emt 0:00:13] [#]} 16. Nxd5 $1 {[%emt 0:02:05]} Qxd5 {[%emt 0:00:06]} 17. Bxe4 {[%emt 0:00:28]} Qxd4 {[%emt 0:00:08]} 18. Bxc6+ {[%emt 0:06:02]} bxc6 {[%emt 0:00:03]} 19. Qc2 {[%emt 0:00:16]} O-O {[%emt 0:03:23]} 20. Rd1 {[%emt 0:00:22]} Qg4 {[%emt 0:03:05]} 21. Rb1 {[%emt 0:01:16]} Qe6 {[%emt 0:00:48]} 22. b3 {[%emt 0:02:14]} axb3 {[%emt 0:00:47]} 23. axb3 {[%emt 0:00:24]} Rfd8 {[%emt 0:01:03]} 24. Be3 {[%emt 0:00:56]} h5 {[%emt 0:00:48]} 25. Qc4 {[%emt 0:04:35]} Rxd1+ {[%emt 0:01:28]} 26. Rxd1 {[%emt 0:00:10]} Qxc4 {[%emt 0:00:40]} 27. bxc4 {[%emt 0:00:03]} Ra1 {[%emt 0:02:13]} 28. Rxa1 {[%emt 0:00:12]} Bxa1 $11 {[%emt 0:00:05] KB-KB} 29. f4 {[%emt 0:00:19]} f5 {[%emt 0:01:02]} 30. Kg2 {[%emt 0:00:15]} Kf7 {[%emt 0:00:04]} 31. Kf3 {[%emt 0:00:07] Weighted Error Value: White=0.05 (flawless) /Black=0.05 (flawless) .  Inaccurate:     	---       	Black=1      OK:         	White=12    	Black=9      Best:        	---       	Black=1} 1/2-1/2

[Event "Hungarian Super League 2024-25"]
[Site "Hungary"]
[Date "2024.11.02"]
[Round "1.43"]
[White "Bokros, Albert"]
[Black "Nenezic, Marko"]
[Result "0-1"]
[ECO "B61"]
[WhiteElo "2396"]
[BlackElo "2497"]
[Annotator "TA"]
[PlyCount "94"]
[EventDate "2024.10.30"]
[EventType "team-tourn"]
[EventCountry "HUN"]
[SourceTitle "playchess.com"]
[Source "ChessBase"]
[SourceQuality "1"]
[TimeControl "40/5400+30:1800+30"]

{[%evp 16,94,67,52,66,39,38,42,41,30,35,13,48,49,52,52,56,0,59,54,77,73,76,89,87,37,54,37,37,15,24,9,18,0,83,107,100,103,98,108,97,0,0,-75,-50,-106,-112,-96,-108,-113,-116,-118,-120,-233,-213,-191,-214,-191,-201,-337,-329,-352,-323,-344,-359,-290,-304,-382,-380,-410,-414,-429,-420,-1659,-1945,-29968,-29963,-29971,-29972,-29971,-29967]} 1. e4 {[%emt 0:00:37]} c5 {[%emt 0:00:55]} 2. Nf3 {[%emt 0:00:06]} Nc6 {[%emt 0:00:27]} 3. d4 {[%emt 0:00:10]} cxd4 {[%emt 0:00:12]} 4. Nxd4 {[%emt 0:00:06]} Nf6 {[%emt 0:00:25]} 5. Nc3 {[%emt 0:00:05]} d6 {[%emt 0:00:21]} 6. Bg5 {[%emt 0:00:09]} Bd7 {[%emt 0:00:34]} 7. Qd2 {[%emt 0:00:30]} Nxd4 {[%emt 0:00:47]} 8. Qxd4 {[%emt 0:00:07]} Qa5 {[%emt 0:00:14]} 9. Bd2 {[%emt 0:05:33][%cal Oc3b5]} e5 {[%emt 0:13:40]} 10. Qe3 {[%emt 0:03:26]} Rc8 {[%emt 0:05:36]} 11. Bd3 {[%emt 0:03:39]} a6 {[%emt 0:01:46] Wards off Nb5. White is slightly better.} 12. O-O {[%emt 0:05:20]} Be6 {[%emt 0:08:55]} 13. Qg3 {[%emt 0:04:33]} Qb6 {[%emt 0:02:19][%cal Og7g6]} 14. a4 {[%emt 0:05:44][%cal Ba2a4,Ba4a5][%mdl 32]} h5 {[%emt 0:06:58][%cal Oh5h4]} 15. a5 {[%emt 0:04:39]} Qd8 {[%emt 0:00:07] [#]} 16. Nd5 {[%emt 0:12:01]} h4 {[%emt 0:19:39]} (16... Nxd5 $11 17. exd5 Bxd5) 17. Qf3 $14 {[%emt 0:08:01]} h3 {[%emt 0:05:40]} 18. g3 {[%emt 0:03:42]} Bxd5 {[%emt 0:01:16]} 19. exd5 {[%emt 0:00:17]} g6 {[%emt 0:00:08]} 20. Bg5 {[%emt 0:11:03]} (20. b4 $16) 20... Be7 {[%emt 0:00:51]} 21. c4 {[%emt 0:04:57]} Nd7 {[%emt 0:02:05]} 22. Be3 {[%emt 0:03:04]} f5 {[%emt 0:01:32] Prevents Qg4. And now ...e4 would win.} 23. Qe2 {[%emt 0:00:34]} e4 {[%emt 0:01:05]} 24. Bc2 {[%emt 0:00:28]} Ne5 {[%emt 0:00:25]} (24... Kf7 $11 {remains equal.}) 25. Bb6 $16 {[%emt 0:01:25]} Rc7 {[%emt 0:00:36][%cal Od8c8] [#]} 26. c5 $1 {[%emt 0:07:50]} Nf3+ {[%emt 0:04:27]} 27. Kh1 {[%emt 0:00:58] Hoping for Bxe4.} dxc5 {[%emt 0:00:19][%cal Oe8g8]} 28. Rad1 {[%emt 0:02:55]} (28. b4 $16) 28... O-O $1 $36 {[%emt 0:03:57][%cal Oe7d6][%mdl 2048] Black fights for an advantage.} 29. Qc4 {[%emt 0:07:24]} (29. d6 $11 Bxd6 30. Rd5) 29... Bd6 $1 $17 {[%emt 0:02:03][%cal Of8f7]} 30. Ba4 {[%emt 0:01:32] [#] Black converts the advantage convincingly.} (30. Qc3 $15) 30... Rff7 $1 {[%emt 0:01:51]} 31. Qc1 {[%emt 0:00:46][%cal Oa4b3] [#] Dodges Qg5} (31. Qe2 Qf6) 31... Kh7 $1 {[%emt 0:01:17] Black is much more active.} 32. Qe3 {[%emt 0:00:41][%cal Od1c1] [#] Against c4} (32. Bb3 Qf6) 32... Qf6 $1 {[%emt 0:06:57]} 33. Bxc7 {[%emt 0:00:06]} Rxc7 {[%emt 0:00:06]} 34. b3 {[%emt 0:00:24] White is weak on the dark squares} (34. Qc3 $17 Kg7 35. Qxf6+ Kxf6 36. b3) 34... Qe5 {[%emt 0:00:24]} 35. Rc1 {[%emt 0:01:38]} Rf7 {[%emt 0:06:10][%cal Of5f4] ...f4! is the strong threat.} 36. Qc3 {[%emt 0:00:47]} Nd4 {[%emt 0:02:29][%cal Of5f4] ...f4! would now be deadly.} (36... Qxd5 37. Rfd1 Qe6 38. b4 cxb4 39. Qe3) 37. f4 {[%emt 0:03:02]} (37. Rce1 $142) 37... exf3 $19 {[%emt 0:01:09]} 38. Rce1 {[%emt 0:00:32] Dodges Qe2} Qxd5 {[%emt 0:00:31] ( -> ...f2+)} 39. Qc4 {[%emt 0:00:04]} Qxc4 {[%emt 0:00:16]} 40. bxc4 {[%emt 0:00:00]} g5 {[%emt 0:00:00]} 41. Be8 {[%emt 0:04:00]} Rg7 {[%emt 0:08:49]} 42. g4 {[%emt 0:00:55]} fxg4 {[%emt 0:03:40]} 43. Bh5 {[%emt 0:00:49]} g3 {[%emt 0:00:53]} 44. hxg3 {[%emt 0:03:28]} (44. Bxf3 $142 Nxf3 (44... gxh2 45. Be4+ Kg8 46. Rf6 $11) (44... g2+ $2 45. Bxg2 hxg2+ 46. Kxg2 $19) 45. Rxf3 g2+ (45... gxh2 46. Rxh3+ Kg8 47. Rh6 $14) 46. Kg1) 44... g4 {[%emt 0:00:51]} 45. Re4 {[%emt 0:02:39]} Nf5 {[%emt 0:00:50] Black mates.} ({Less strong is} 45... Bxg3 46. Bxg4 Bc7 47. Bxh3 $17 (47. Bxf3 Nf5 $17)) 46. Rxg4 {[%emt 0:00:23]} Rxg4 {[%emt 0:00:16]} 47. Bxg4 {[%emt 0:00:09]} Nxg3+ {[%emt 0:00:04] Weighted Error Value: White=0.56/Black=0.07 (flawless) .  Mistake:       	White=8     	Black=2      Inaccurate:     	White=2     	Black=1      OK:         	White=13    	Black=18     Best:        	White=4     	Black=4      Strong:       	---       	Black=2} 0-1

[Event "Hungarian Super League 2024-25"]
[Site "Hungary"]
[Date "2024.11.02"]
[Round "1.44"]
[White "Berczes, David"]
[Black "Vanczak, Tamas"]
[Result "1/2-1/2"]
[ECO "E11"]
[WhiteElo "2413"]
[BlackElo "2413"]
[Annotator "RC"]
[PlyCount "142"]
[EventDate "2024.10.30"]
[EventType "team-tourn"]
[EventCountry "HUN"]
[SourceTitle "playchess.com"]
[Source "ChessBase"]
[SourceQuality "1"]
[TimeControl "40/5400+30:1800+30"]

1. d4 {[%emt 0:00:36]} Nf6 {[%emt 0:00:46]} 2. Nf3 {[%emt 0:00:15]} e6 {[%emt 0:00:23]} 3. c4 {[%emt 0:00:34]} Bb4+ {[%emt 0:00:35]} 4. Nbd2 {[%emt 0:00:15]} d5 {[%emt 0:00:14]} 5. a3 {[%emt 0:10:32]} Be7 {[%emt 0:00:20]} 6. g3 {[%emt 0:01:03]} O-O {[%emt 0:00:50]} 7. Bg2 {[%emt 0:00:05]} b6 {[%emt 0:03:07]} 8. O-O {[%emt 0:04:19]} Bb7 {[%emt 0:01:48]} 9. cxd5 {[%emt 0:09:07]} exd5 {[%emt 0:00:17]} 10. Nb1 {[%emt 0:08:14]} Bd6 {[%emt 0:09:01]} 11. Nc3 {[%emt 0:02:40]} Re8 {[%emt 0:12:24]} 12. Bg5 {[%emt 0:08:15]} h6 {[%emt 0:06:12]} 13. Bxf6 {[%emt 0:03:40]} Qxf6 {[%emt 0:00:07]} 14. Qa4 {[%emt 0:12:19]} Qe6 {[%emt 0:11:47]} 15. Bh3 {[%emt 0:06:46]} Qe7 {[%emt 0:00:29]} 16. Nh4 {[%emt 0:02:22]} Na6 {[%emt 0:11:25]} 17. Bd7 {[%emt 0:12:54]} Red8 {[%emt 0:01:33]} 18. Bc6 {[%emt 0:00:50]} Bxc6 {[%emt 0:00:11]} 19. Qxc6 {[%emt 0:00:16]} Rac8 {[%emt 0:04:13]} 20. Nf5 {[%emt 0:03:21]} Qf6 {[%emt 0:06:06]} 21. Qxd5 {[%emt 0:08:37]} Bf8 {[%emt 0:11:47]} 22. Qf3 {[%emt 0:00:34]} c5 {[%emt 0:01:19]} 23. d5 {[%emt 0:03:48]} c4 {[%emt 0:00:20]} 24. d6 {[%emt 0:00:30]} Kh8 {[%emt 0:03:55]} 25. Nd5 {[%emt 0:00:35]} Qe6 {[%emt 0:01:51]} 26. Nde7 {[%emt 0:00:31]} Rc5 {[%emt 0:00:45]} 27. Rad1 {[%emt 0:00:28]} Qf6 {[%emt 0:05:36]} 28. e4 {[%emt 0:00:33]} g6 {[%emt 0:00:59]} 29. Nh4 {[%emt 0:00:27]} Qxf3 {[%emt 0:01:36]} 30. Nxf3 {[%emt 0:00:03]} Rd7 {[%emt 0:00:17]} 31. Rd4 {[%emt 0:00:59]} Bg7 {[%emt 0:03:11]} 32. e5 {[%emt 0:00:27]} Bxe5 {[%emt 0:00:52]} 33. Nxe5 {[%emt 0:00:03]} Rxe5 {[%emt 0:00:05]} 34. f4 {[%emt 0:00:57]} Re6 {[%emt 0:01:32]} 35. f5 {[%emt 0:00:15]} Rexd6 {[%emt 0:00:35]} 36. fxg6 {[%emt 0:00:44]} fxg6 {[%emt 0:01:22]} 37. Nxg6+ {[%emt 0:00:32]} Kg7 {[%emt 0:00:14]} 38. Rxd6 {[%emt 0:00:11]} Rxd6 {[%emt 0:00:05]} 39. Ne5 {[%emt 0:00:08]} Re6 {[%emt 0:01:08]} 40. Nxc4 {[%emt 0:00:00]} b5 {[%emt 0:00:00]} 41. Na5 {[%emt 0:03:17]} b4 {[%emt 0:08:05]} 42. Rc1 {[%emt 0:10:37]} Re5 {[%emt 0:04:30]} 43. Nc6 {[%emt 0:02:54]} Re2 {[%emt 0:00:54]} 44. axb4 {[%emt 0:01:56]} Rxb2 {[%emt 0:00:15]} 45. Rc4 {[%emt 0:00:54]} Kf6 {[%emt 0:05:48]} 46. Rf4+ {[%emt 0:01:43]} Kg7 {[%emt 0:00:54]} 47. Rd4 {[%emt 0:02:21]} Kf6 {[%emt 0:03:07]} 48. Rf4+ {[%emt 0:10:40]} Kg7 {[%emt 0:00:24]} 49. h4 {[%emt 0:00:07]} Nc7 {[%emt 0:05:34]} 50. Rd4 {[%emt 0:00:53]} Nb5 {[%emt 0:02:19]} 51. Rd7+ {[%emt 0:00:49]} Kf6 {[%emt 0:01:07]} 52. Rh7 {[%emt 0:00:50]} Nc3 {[%emt 0:03:06]} 53. g4 {[%emt 0:00:34]} Ne2+ {[%emt 0:01:03]} 54. Kf1 {[%emt 0:00:06]} Ng3+ {[%emt 0:00:10]} 55. Ke1 {[%emt 0:00:23]} Re2+ {[%emt 0:00:49]} 56. Kd1 {[%emt 0:00:01]} Re4 {[%emt 0:00:14]} 57. Rxh6+ {[%emt 0:01:30]} Kg7 {[%emt 0:00:04]} 58. g5 {[%emt 0:00:37]} Nf5 {[%emt 0:00:07]} 59. Rf6 {[%emt 0:00:09]} Nxh4 {[%emt 0:00:22]} 60. b5 {[%emt 0:00:50]} Rg4 {[%emt 0:01:45]} 61. Nxa7 Rxg5 {[%emt 0:00:08]} 62. Rc6 {[%emt 0:01:02]} Nf3 {[%emt 0:00:39]} 63. Rc7+ {[%emt 0:00:08]} Kf6 {[%emt 0:00:20]} 64. b6 {[%emt 0:00:06]} Nd4 {[%emt 0:00:31]} 65. b7 {[%emt 0:00:48]} Rg1+ {[%emt 0:00:17]} 66. Kd2 {[%emt 0:00:04]} Rb1 {[%emt 0:00:08]} 67. Nc8 {[%emt 0:01:25]} Ne6 {[%emt 0:00:38]} 68. Rd7 {[%emt 0:00:29]} Nc5 {[%emt 0:00:16]} 69. Rd6+ {[%emt 0:00:29]} Ke5 {[%emt 0:00:14]} 70. Rb6 {[%emt 0:00:30]} Rxb6 {[%emt 0:00:06]} 71. Nxb6 {[%emt 0:00:03]} Nxb7 {[%emt 0:00:04]} 1/2-1/2